Workbook

Sheet 6 Farview Rent Roll
A1: Years | B1: Unit | C1: Initial Lease Term | D1: Deposits | E1: Current Rent | F1: RECONCILED | G1: Rent Proforma | I1: 01.09.26-01.31.26 Rent Proration | J1: 01.09.26-01.31.26 Rent Proration UPDATED
A2: 1 | B2: 1 | C2: 06/10/24 - 07/01/25 | D2: 900 | E2: 975 | F2: 975 | G2: 1250 | I2: =E2/31*23 -> 723.3870968 | J2: =F2/31*23 -> 723.3870968
A3: 15 | B3: 2 | C3: 10/02/10 - 09/30/11 | D3: 522 | E3: 915 | F3: 915 | G3: 1250 | I3: =E3/31*22 -> 649.3548387 | J3: 678.87
A4: 2 | B4: 3 | C4: 06/01/23 - 06/01/24 | D4: 950 | E4: 1020 | F4: 1020 | G4: 1250 | I4: =E4/31*23 -> 756.7741935 | J4: =F4/31*23 -> 756.7741935
A5: 14 | B5: 4 | C5: 07/01/25 - 06/30/26 | D5: 1100 | E5: 1100 | F5: 1100 | G5: 1250 | I5: =E5/31*23 -> 816.1290323 | J5: =F5/31*23 -> 816.1290323
A6: 2 | B6: 5 | C6: 08/01/23 - 07/31/24 | D6: 950 | E6: 1025 | F6: 1025 | G6: 1250 | I6: =E6/31*23 -> 760.483871 | J6: =F6/31*23 -> 760.483871
A7: 1 | B7: 6 | C7: 01/08/24 - 01/31/25 | D7: 975 | E7: 1045 | F7: 1050 | G7: 1250 | I7: =E7/31*23 -> 775.3225806 | J7: 779.03
A8: 21 | B8: 7 | C8: 05/05/04 - 05/31/05 | D8: 560 | E8: 920 | F8: 920 | G8: 1250 | I8: =E8/31*23 -> 682.5806452 | J8: =F8/31*23 -> 682.5806452
A9: 6 | B9: 8 | C9: 09/01/19 - 08/31/20 | D9: 775 | E9: 930 | F9: 945 | G9: 1250 | I9: =E9/31*23 -> 690 | J9: 701.13
A10: 21 | B10: 17 | C10: 09/01/12 - 08/31/13 | D10: 556 | E10: 930 | F10: 930 | G10: 1250 | I10: =E10/31*23 -> 690 | J10: =F10/31*23 -> 690
A11: 3 | B11: 18 | C11: 03/15/22 - 04/30/23 | D11: 900 | E11: 975 | F11: 975 | G11: 1250 | I11: =E11/31*23 -> 723.3870968 | J11: =F11/31*23 -> 723.3870968
A12: 16 | B12: 19 | C12: 11/15/19 - 12/31/20 | D12: 775 | E12: 910 | F12: 915 | G12: 1250 | I12: =E12/31*23 -> 675.1612903 | J12: 678.87
A13: 6 | B13: 20 | C13: 04/06/19 - 05/31/20 | D13: 745 | E13: 935 | F13: 935 | G13: 1250 | I13: =E13/31*23 -> 693.7096774 | J13: =F13/31*23 -> 693.7096774
A14: 16 | B14: 21 | C14: 07/05/15 - 08/31/16 | D14: 665 | E14: 920 | F14: 925 | G14: 1250 | I14: =E14/31*23 -> 682.5806452 | J14: 686.29
A15: 4 | B15: 22 | C15: 08/01/21 - 08/01/22 | D15: 845 | E15: 975 | F15: 975 | G15: 1250 | I15: =E15/31*23 -> 723.3870968 | J15: =F15/31*23 -> 723.3870968
A16: 5 | B16: 23 | C16: 09/20/25 - 11/01/26 | D16: 1100 | E16: 925 | F16: 950 | G16: 1250 | I16: =E16/31*23 -> 686.2903226 | J16: 704.84
A17: 1 | B17: 24 | C17: 02/01/24 - 02/28/25 | D17: 985 | E17: 1050 | F17: 1060 | G17: 1250 | I17: =E17/31*23 -> 779.0322581 | J17: 786.45
A18: 17 | B18: 25 | C18: 01/15/08 - 02/01/09 | D18: 560 | E18: 945 | F18: 945 | G18: 1250 | I18: =E18/31*23 -> 701.1290323 | J18: =F18/31*23 -> 701.1290323
A19: 2 | B19: 26 | C19: 04/01/23 - 04/30/24 | D19: 950 | E19: 995 | F19: 1045 | G19: 1250 | I19: =E19/31*23 -> 738.2258065 | J19: 775.32
A20: 1 | B20: 27 | C20: 08/01/24 - 07/31/25 | D20: 985 | E20: 1030 | F20: 1030 | G20: 1250 | I20: =E20/31*23 -> 764.1935484 | J20: =F20/31*23 -> 764.1935484
A21: 12 | B21: 28 | C21: 11/15/25 - 11/30/26 | D21: 1100 | E21: 930 | F21: 1115 | G21: 1250 | I21: =E21/31*23 -> 690 | J21: 827.26
C23: Monthly | D23: =SUM(D2:D22) -> 16898 | E23: =SUM(E2:E21) -> 19450 | F23: =SUM(F2:F22) -> 19750 | G23: =SUM(G2:G21) -> 25000 | I23: =SUM(I2:I22) -> 14401.12903 | J23: =SUM(J2:J22) -> 14653.22129
C24: Yearly | E24: =E23*12 -> 233400 | G24: =G23*12 -> 300000
